Workbook

Sheet Cover
B3: Excel + VBA
B7: Thema | C7: 3D-Bezug
B9: Inhalt | C9: Preis-Kalkulation
C10: 3D Bezüge mit Zelladressen
B17: Autor | C17: Harald Nahrstedt
B18: Datum | C18: 2023-11-29
B19: Version | C19: 2023-03-01
B22: Springer Vieweg Verlag

Sheet Kalkulation 1
B1: Einzelkosten | C1: %-Anteil
A2: Entwicklung | B2: 7800 | C2: =B2/B$9 -> 0.2005141388
A3: Material | B3: 6400 | C3: =B3/B$9 -> 0.1645244216
A4: Fertigung | B4: 7200 | C4: 0.1850899743
A5: Verwaltung | B5: 3400 | C5: 0.08740359897
A6: Marketing | B6: 5900 | C6: 0.1516709512
A7: Vertrieb | B7: 8200 | C7: 0.2107969152
A9: Gesamtkosten | B9: =SUM(B2:B7) -> 38900
A12: Stückzahl | B12: 100
A13: Herstellpreis | B13: =B9/B12 -> 389
A14: Gewinn | B14: =B13*C14 -> 116.7 | C14: 0.3
A15: Nettopreis | B15: =B13+B14 -> 505.7
A16: MWSteuer | B16: 96.08 | C16: 0.19
A17: Verkaufspreis | B17: =B15+B16 -> 601.78

Sheet Kalkulation 2
B1: Einzelkosten | C1: %-Anteil
A2: Entwicklung | B2: 7200 | C2: =B2/B$9 -> 0.1988950276
A3: Material | B3: 6100 | C3: =B3/B$9 -> 0.1685082873
A4: Fertigung | B4: 6800 | C4: 0.1878453039
A5: Verwaltung | B5: 3100 | C5: 0.08563535912
A6: Marketing | B6: 5400 | C6: 0.1491712707
A7: Vertrieb | B7: 7600 | C7: 0.2099447514
A9: Gesamtkosten | B9: =SUM(B2:B7) -> 36200
A12: Stückzahl | B12: 100
A13: Herstellpreis | B13: =B9/B12 -> 362
A14: Gewinn | B14: =B13*C14 -> 108.6 | C14: 0.3
A15: Nettopreis | B15: =B13+B14 -> 470.6
A16: MWSteuer | B16: 96.08 | C16: 0.19
A17: Verkaufspreis | B17: =B15+B16 -> 566.68

Sheet Kalkulation 3
B1: Einzelkosten | C1: %-Anteil
A2: Entwicklung | B2: 8200 | C2: =B2/B$9 -> 0.1990291262
A3: Material | B3: 6800 | C3: =B3/B$9 -> 0.1650485437
A4: Fertigung | B4: 7600 | C4: 0.1844660194
A5: Verwaltung | B5: 3800 | C5: 0.09223300971
A6: Marketing | B6: 6300 | C6: 0.1529126214
A7: Vertrieb | B7: 8500 | C7: 0.2063106796
A9: Gesamtkosten | B9: =SUM(B2:B7) -> 41200
A12: Stückzahl | B12: 100
A13: Herstellpreis | B13: =B9/B12 -> 412
A14: Gewinn | B14: =B13*C14 -> 123.6 | C14: 0.3
A15: Nettopreis | B15: =B13+B14 -> 535.6
A16: MWSteuer | B16: 96.08 | C16: 0.19
A17: Verkaufspreis | B17: =B15+B16 -> 631.68

Sheet Kalkulation Mittelwerte
B1: Einzelkosten | C1: %-Anteil
A2: Entwicklung | B2: =MEK -> 7733.333333 | C2: =B2/B$9 -> 0.1994840929
A3: Material | B3: =MEK -> 6433.333333 | C3: =B3/B$9 -> 0.165950129
A4: Fertigung | B4: =MEK -> 7200 | C4: 0.1857265692
A5: Verwaltung | B5: =MEK -> 3433.333333 | C5: 0.08856405847
A6: Marketing | B6: =MEK -> 5866.666667 | C6: 0.1513327601
A7: Vertrieb | B7: =MEK -> 8100 | C7: 0.2089423904
A9: Gesamtkosten | B9: =SUM(B2:B7) -> 38766.66667
